Cogmind - Beta 15 *** ADVENTURER MODE // 2025.08.02 @ 16:24:48 // Winter2019/RPGLIKE Player: MN-W4D Result: Destroyed by S-10 Pest with Light Assault Rifle Performance ------------- Evolutions (0) 0 Regions Visited (3) 600 Robots Destroyed (32) 160 Value Destroyed (831) 831 Prototype IDs (11) 220 Alien Tech Used (0) 0 Bonus (0) 0 TOTAL SCORE: 1811 Bonus ------- None Cogmind --------- Core Integrity 0/700 Matter 252/300 Energy 140/140 System Corruption 3% Temperature Cool (0) Movement Hovering (77) Location -10/Subcaves Parts ------- > --- POWER (1+1) ------ Light Deuterium Engine > --- PROPULSION (2+1) - Combat Airjet Combat Airjet > --- UTILITY (2+1) ---- Signal Interpreter Improved Terrain Scanner (+) Rainbow Chip > --- WEAPON (2+1) ----- Slug Cannon Grenade Launcher Enhanced Flamer (+) > --- INVENTORY (3) ---- Bore Cannon Mining Laser Peak State ------------ > --- POWER ------------ Light Deuterium Engine > --- PROPULSION ------- Combat Airjet Combat Airjet > --- UTILITY ---------- Signal Interpreter Improved Terrain Scanner Rainbow Chip > --- WEAPON ----------- Slug Cannon Flamer Enhanced Flamer > --- INVENTORY -------- Bore Cannon Grenade Launcher Mining Laser [Rating: 39] Favorites ----------- Power Light Deuterium Engine Engine Light Deuterium Engine Propulsion Combat Airjet Leg Aluminum Leg Hover Unit Combat Airjet Utility Signal Interpreter Device Improved Terrain Scanner Processor Signal Interpreter Weapon Slug Cannon Energy Gun Small Laser Ballistic Gun Light Assault Rifle Ballistic Cannon Slug Cannon Launcher Grenade Launcher Special Weapon Mining Laser Build | -11 -10 -10 -10 ------- Run | Yrd Mat Min Sub Slots Evolved 3 | 3 . . . Power . | . . . . Propulsion 1 | 1 . . . Utility 1 | 1 . . . Weapon 1 | 1 . . . Parts Attached 21 | 6 5 5 5 Power 2 | 1 . 1 . Engine 2 | 1 . 1 . Core . | . . . . Reactor . | . . . . Propulsion 4 | 2 . 2 . Treads . | . . . . Leg 2 | 2 . . . Wheel . | . . . . Hover 2 | . . 2 . Flight . | . . . . Utility 5 | 1 2 . 2 Device 3 | 1 1 . 1 Storage . | . . . . Processor 2 | . 1 . 1 Hackware . | . . . . Protection . | . . . . Artifact . | . . . . Weapon 10 | 2 3 2 3 Energy Gun 1 | 1 . . . Energy Cannon . | . . . . Ballistic Gun 2 | 1 1 . . Ballistic Cannon 2 | . . 2 . Launcher 1 | . 1 . . Special Weapon 4 | . 1 . 3 Impact Weapon . | . . . . Slashing Weapon . | . . . . Piercing Weapon . | . . . . Special Melee Weapon . | . . . . Unidentified Prototypes . | . . . . Corrupted Parts 1 | . . 1 . System Corruption 3 | . . 3 . Parts Lost . | . . . . Power . | . . . . Propulsion . | . . . . Utility . | . . . . Weapon . | . . . . Highest Loss Streak . | . . . . To Critical Strikes . | . . . . Average Backups 2 | . 2 2 2 Power . | . . . . Propulsion . | . 1 1 . Utility . | . . . . Weapon 2 | . 1 1 2 Tool/Special . | . . . . Unused Backups 1 | . . . 1 Power . | . . . . Propulsion 1 | . . . 1 Utility . | . . . . Weapon . | . . . . Tool/Special . | . . . . Average Slot Usage (%) 88 | . 88 93 87 Engine 12 | . 14 14 11 Leg 5 | . 27 9 . Hover 18 | . . 18 22 Device 11 | . 14 14 10 Processor 13 | . 3 14 16 Ballistic Gun 3 | . 19 3 . Ballistic Cannon 9 | . . 14 11 Launcher 1 | . 5 3 . Special Weapon 10 | . . . 14 Peak Build Rating 39 | 8 9 26 39 Average Rating 24 | 4 8 19 30 On Entrance 10 | . 8 9 26 Naked Turns . | . . . . Heaviest Build 22 | 8 11 22 22 Greatest Support 24 | 20 20 24 24 Greatest Overweight (x) 3 | . 3 1 . Average Overweight (x) . | . . . . Largest Inventory Capacity 3 | 3 3 3 3 Average Capacity 2 | 2 3 3 3 Most Carried 3 | 1 3 3 3 Average Carried 2 | . 2 2 2 Final Capacity 3 | 3 3 3 3 Final Carried 3 | 1 3 3 2 Class Distribution -------------------- 46% | Scavenger-Mutant 26% | Mutant 26% | Scavenger-Skirmisher Dominant Class ---------------- Mutant | -10/Materials Scavenger-Mutant | -10/Mines Scavenger-Mutant | -10/Subcaves Resources | -11 -10 -10 -10 ----------- Run | Yrd Mat Min Sub Matter Collected 1280 | 270 28 251 731 Remotely . | . . . . Salvage Created 530 | 143 25 26 336 Parts 71 | 9 13 11 38 Haulers Intercepted . | . . . . Recyclers Shooed . | . . . . Parts Field Recycled . | . . . . Retrieved Matter . | . . . . Parts Self-Destructed 12 | . . . 12 Prevented . | . . . . Kills | -11 -10 -10 -10 ------- Run | Yrd Mat Min Sub Combat Hostiles Destroyed 40 | . 3 18 19 Cannons 22 | . . 3 19 AOE 18 | . 3 15 . Classes Destroyed 8 | 2 2 3 1 Worker 1 | . . 1 . Builder 2 | . 2 . . Tunneler 4 | 3 . 1 . Recycler 1 | 1 . . . Swarmer 7 | . 3 . 4 Demolisher 2 | . . 2 . Subdweller 15 | . . . 15 Assembled 16 | . . 16 . Best Kill Streak 19 | 2 4 19 5 Combat Bots Only 18 | . 3 18 5 Max Kills in Single Turn 4 | 1 2 4 1 Gunslinging . | . . . . Exploded 3 | . 2 3 . Melee . | . . . . Uniques/NPCs Destroyed . | . . . . Combat | -11 -10 -10 -10 -------- Run | Yrd Mat Min Sub Hostile Shots Fired 159 | . 8 58 93 Missed 57 | . 4 23 30 Hits 102 | . 4 35 63 Projectile 102 | . 4 35 63 AOE 6 | . . 3 3 Critical Strikes 3 | . . . 3 Damage Taken 1467 | . 18 468 981 Core 1209 | . 14 390 805 Absorbed by Shields . | . . . . Redirected to Core 844 | . 10 253 581 Ignored by Resistances 371 | . 8 135 228 Core Remaining (%) 100 | 100 . . . Volleys Fired 150 | 10 6 17 117 Largest 2 | 2 1 2 2 Hottest 120 | 60 100 48 120 Shots Fired 168 | 20 6 19 123 Gun 23 | 20 1 2 . Cannon 79 | . . 6 73 Launcher 21 | . 3 11 7 Special 45 | . 2 . 43 Kinetic 92 | 10 1 8 73 Thermal 55 | 10 2 . 43 Explosive 21 | . 3 11 7 Electromagnetic . | . . . . Robot Hit Streak 35 | 8 11 5 35 Robot Miss Streak 1 | 1 . 1 1 Penetration Max . | . . . . Secondary Targets . | . . . . Shots Hit Robots 96 | 16 3 8 69 Core Hits 73 | 7 5 36 25 Critical Kills 6 | . . 3 3 Critical Parts Destroyed 2 | . . . 2 Critical Strikes 14 | . . 3 11 Destroy 14 | . . 3 11 Melee Attacks . | . . . . Impact . | . . . . Slashing . | . . . . Piercing . | . . . . Sneak Attacks . | . . . . Combat Hostiles . | . . . . Follow-up Attacks . | . . . . Damage Inflicted 3312 | 147 172 1184 1809 Guns 171 | 147 9 15 . Cannons 1850 | . . 84 1766 Explosions 1248 | . 163 1085 . Melee . | . . . . Ramming . | . . . . Kinetic 1946 | 72 9 99 1766 Thermal 118 | 75 . . 43 Explosive 1248 | . 163 1085 . Electromagnetic . | . . . . Impact . | . . . . Slashing . | . . . . Piercing . | . . . . Highest Corruption 3 | . . 3 3 Average Corruption 3 | . . 3 3 Corruption Purged . | . . . . Corruption Blocked . | . . . . Effects 37 | . . 5 32 Message Errors 9 | . . . 9 Matter Fused 8 | . . 1 7 Heat Flow Errors 3 | . . . 3 Energy Discharges 3 | . . 2 1 Data Loss (minor) 7 | . . . 7 Data Loss (major) 3 | . . 1 2 Misfires 3 | . . 1 2 Weapon Failures 1 | . . . 1 Overload Shots . | . . . . Overflow Damage 23 | . . 12 11 Projectiles 11 | . . . 11 Explosions 12 | . . 12 . Melee . | . . . . Knockbacks 16 | . . . 16 Impact . | . . . . Kinetic 16 | . . . 16 Secondary . | . . . . Self-Inflicted Damage 56 | . . 37 19 Shots 3 | . . 2 1 Rammed . | . . . . Targets Rammed . | . . . . Kicked . | . . . . Crushed . | . . . . Highest Temperature 166 | 16 . . 166 Average Temperature 25 | 6 . . 58 Received Heat Transfer 150 | . . . 150 Siege Activations . | . . . . Martial Activations . | . . . . Shielding Activations . | . . . . Robots Disrupted . | . . . . Combat Hostiles . | . . . . Robots Corrupted . | . . . . Combat Hostiles . | . . . . Parts Fried . | . . . . Impact Corruptions . | . . . . Robots Melted . | . . . . Combat Hostiles . | . . . . Parts Melted . | . . . . Heat Transferred 495 | 175 . . 320 Parts Sabotaged . | . . . . Parts Stolen . | . . . . Parts Stripped . | . . . . Power Chain Reactions . | . . . . Alert | -11 -10 -10 -10 ------- Run | Yrd Mat Min Sub Maximum Alert Level . | . . . . Low Security (%) 100 | 100 100 100 . Level 1 . | . . . . Level 2 . | . . . . Level 3 . | . . . . Level 4 . | . . . . Level 5 . | . . . . High Security . | . . . . Max Security . | . . . . Peak Influence 84 | 10 84 60 . Initial . | . . . . Average 18 | 2 21 18 . Influence Increases 341 | 20 110 91 120 Destroy 0b10 Robot/C 180 | . 60 40 80 Destroy 0b10 Robot/NC 40 | 20 10 10 . Destroy Leader 30 | . 10 10 10 Successful Hack 7 | . 7 . . Disable Machine 9 | . 9 . . Destroy Structure 45 | . 14 31 . Lose Combat Pursuer 30 | . . . 30 Influence Decreases 301 | 20 107 94 80 Entered New Map 3 | . . 3 . Time Decay 298 | 20 107 91 80 Squads Dispatched . | . . . . Investigation . | . . . . Extermination . | . . . . Reinforcement . | . . . . Assault . | . . . . Garrison . | . . . . Intercept . | . . . . Searches Triggered . | . . . . Construction Impeded . | . . . . Haulers Reinforced . | . . . . Active Scanning Responses . | . . . . Cargo Convoy Interrupts . | . . . . Stealth | -11 -10 -10 -10 --------- Run | Yrd Mat Min Sub Distress Signals . | . . . . Communications Jammed . | . . . . Distress Signals . | . . . . Times Spotted 50 | . 5 21 24 Peak Tracking Total 15 | . 3 15 6 Tactical Retreats 1 | . . . 1 Traps | -11 -10 -10 -10 ------- Run | Yrd Mat Min Sub Traps Triggered 6 | . 2 . 4 Indirectly . | . . . . Trap Hack Attempts . | . . . . Triggered . | . . . . Disarmed . | . . . . Reprogrammed . | . . . . Reused . | . . . . Traps Extracted . | . . . . Installed . | . . . . Triggered . | . . . . Most Traps Carried 1 | . . . 1 Machines | -11 -10 -10 -10 ---------- Run | Yrd Mat Min Sub Machines Disabled 3 | . 2 . 1 Max in Single Turn 1 | . 1 . 1 Machines Repaired . | . . . . Machines Dismantled . | . . . . Machines Sabotaged . | . . . . Overloaded Fab Kills . | . . . . Hacking | -11 -10 -10 -10 --------- Run | Yrd Mat Min Sub Machines Accessed 2 | . 1 . 1 Terminals 1 | . 1 . . Fabricators . | . . . . Repair Stations . | . . . . Recycling Units . | . . . . Scanalyzers . | . . . . Garrison Access . | . . . . Total Hacks 12 | . 3 . 9 Successful 12 | . 3 . 9 Failed . | . . . . Catastrophic . | . . . . Database Lockouts . | . . . . Manual . | . . . . Terminals 3 | . 3 . . Fabricators . | . . . . Repair Stations . | . . . . Recycling Units . | . . . . Scanalyzers . | . . . . Garrison Access . | . . . . Terminal Hacks 12 | . 3 . 9 Record 8 | . . . 8 Branch Access Points 1 | . 1 . . Emergency Access Points 1 | . 1 . . Hauler Manifests 1 | . 1 . . Proto ID Catalog 1 | . . . 1 Fabricator Hacks . | . . . . Repair Station Hacks . | . . . . Recycling Unit Hacks . | . . . . Scanalyzer . | . . . . Garrison Access Hacks . | . . . . Unauthorized Hacks . | . . . . Terminals . | . . . . Fabricators . | . . . . Repair Stations . | . . . . Recycling Units . | . . . . Scanalyzers . | . . . . Garrison Access . | . . . . Data Cores Recovered . | . . . . Used . | . . . . Hacking Detections 1 | . 1 . . Full Trace Events . | . . . . Feedback Events . | . . . . Feedback Blocked . | . . . . Robot Schematics Acquired . | . . . . Robots Built . | . . . . Authchips . | . . . . Time . | . . . . Total Robot Build Rating . | . . . . Part Schematics Acquired . | . . . . Parts Built . | . . . . Authchips . | . . . . Time . | . . . . Total Part Build Rating . | . . . . Parts Repaired . | . . . . Time . | . . . . Parts Recycled . | . . . . Recycled Matter . | . . . . Retrieved Matter . | . . . . Retrieved Components . | . . . . Parts Scanalyzed . | . . . . Part Schematics Acquired . | . . . . Parts Damaged . | . . . . Bothacking | -11 -10 -10 -10 ------------ Run | Yrd Mat Min Sub Used RIF Installer . | . . . . Robots Hacked . | . . . . Non-combat . | . . . . Combat . | . . . . Robot Hacks Applied . | . . . . Relay Couplers Released . | . . . . Fabnet Peak Effective % . | . . . . Robots Rewired . | . . . . Allies Hacked . | . . . . Hacks Repelled . | . . . . Allies | -11 -10 -10 -10 -------- Run | Yrd Mat Min Sub Total Allies 1 | . . 1 . Largest Group 1 | . . 1 1 Highest-Rated Group 31 | . . 31 31 Highest-Rated Ally 31 | . . 31 31 Total Orders . | . . . . Ally Attacks . | . . . . Total Damage . | . . . . Kills . | . . . . Allies Corrupted . | . . . . Allies Melted . | . . . . Intel | -11 -10 -10 -10 ------- Run | Yrd Mat Min Sub Active Infowar (turns) 2556 | 7 445 321 1783 Optics 240 | . . . 240 Sensors 9 | . 9 . . Terrain 2316 | 7 445 321 1543 Robot Analysis Total . | . . . . Derelict Logs Recovered 1 | . . . 1 Drone Launches . | . . . . Drone Recoveries . | . . . . Exploration | -11 -10 -10 -10 ------------- Run | Yrd Mat Min Sub Turns Passed 2832 | 84 460 321 1967 Spaces Moved 2592 | 44 274 296 1978 Core 12 | 8 4 . . Treads . | . . . . Legs 343 | 36 270 37 . Wheels . | . . . . Hover 2237 | . . 259 1978 Flight . | . . . . Fastest Speed 50 | 50 100 77 77 Average Speed 82 | 107 120 83 77 Slowest Speed 200 | 120 200 190 77 Overloaded Moves . | . . . . Propulsion Burnouts . | . . . . Robots Hopped . | . . . . Potential Cave-ins 3 | . . . 3 Cave-ins Triggered . | . . . . Exploration Rate (%) 46 | 3 33 71 77 Regions Visited 3 Branch Regions 2 Pre-discovered Areas 1 | . . . 1 Known Exits Taken 2 | . 1 1 . Unknown Exits Taken 1 | 1 . . . Scrap Searched 5 | . . 1 4 Spaces Dug 28 | . 1 . 27 Terrain Destroyed 108 | . 14 45 49 Melee . | . . . . Projectile 14 | . 1 3 10 AOE 94 | . 13 42 39 Terrain Rammed . | . . . . Walls Destroyed . | . . . . Machines Disabled . | . . . . Actions | -11 -10 -10 -10 --------- Run | Yrd Mat Min Sub Total 3020 | 60 390 353 2217 Wait 196 | . 97 11 88 Move 2589 | 43 273 295 1978 Hop . | . . . . Pick Up 8 | 1 2 3 2 Fast Attach 22 | 6 7 4 5 Attach 2 | . . . 2 Detach 2 | . . 1 1 Swap 12 | . 2 4 6 Drop 15 | . 2 7 6 Fire 150 | 10 6 17 117 Melee . | . . . . Ram . | . . . . Kick . | . . . . Crush . | . . . . Escape Stasis . | . . . . Rewire . | . . . . Trap . | . . . . Miscellaneous 24 | . 1 11 12 Route ------- -11/Scrapyard -10/Materials -10/Mines (discovered 2 exits: *Mat / *Sub) -10/Subcaves (discovered 2 exits: *Mat / [*Rec]) History --------- Turn | Location | Event 3 | -11/Scrapyard | Upgraded with Propulsion slot (x1) 3 | -11/Scrapyard | Upgraded with Utility slot (x1) 3 | -11/Scrapyard | Upgraded with Weapon slot (x1) 6 | -11/Scrapyard | Discovered new exit (range 14) 85 | -11/Scrapyard | Entered Materials 165 | -10/Materials | Discovered new exit (range 10) 218 | -10/Materials | Identified exit to Mines 301 | -10/Materials | Build established: Mutant 545 | -10/Materials | Entered Mines 560 | -10/Mines | Assembled infested the area 565 | -10/Mines | Assisted by a Guerilla fighting off Assembled 634 | -10/Mines | Destroyed 18 combat bots 688 | -10/Mines | Found a hidden stash of uninstalled traps 744 | -10/Mines | Discovered new exit (range 8) 752 | -10/Mines | Identified exit to Materials 781 | -10/Mines | Received a Mining Laser from a helpful Derelict 789 | -10/Mines | A weapon hastily lodged in a ceiling crevice suddenly fell to the ground 839 | -10/Mines | Discovered new exit (range 14) 852 | -10/Mines | Identified exit to Subcaves 866 | -10/Mines | Entered Subcaves 866 | -10/Subcaves | Accompanied by 1 ally 867 | -10/Subcaves | Shifting Twisted Machinery released Enh. Flamer 867 | -10/Subcaves | Approached by a straggling Scientist 868 | -10/Subcaves | Reached level 2 878 | -10/Subcaves | Shifting Twisted Machinery released Flamer 896 | -10/Subcaves | Discovered new exit (range 10) 903 | -10/Subcaves | Identified exit to Materials 905 | -10/Subcaves | Shifting Twisted Machinery released Sub. Shrapnel Launcher 929 | -10/Subcaves | Build established: Scavenger-Mutant 1104 | -10/Subcaves | A swath of the cavern ceiling suddenly collapsed 1407 | -10/Subcaves | A swath of the cavern ceiling suddenly collapsed 1782 | -10/Subcaves | Visited 4L-MR0's lab 1793 | -10/Subcaves | Found Rainbow Chip 1794 | -10/Subcaves | Attached Rainbow Chip, gained temporary slots: Power, Propulsion, Utility, Weapon 2105 | -10/Subcaves | Core integrity fell below 50% 2188 | -10/Subcaves | Build established: Scavenger-Skirmisher 2411 | -10/Subcaves | Ambushed by Subdweller buried in earth 2615 | -10/Subcaves | Core integrity fell below 20% 2653 | -10/Subcaves | Learned location of Zion (-7) 2789 | -10/Subcaves | Shifting Twisted Machinery released Sub. Optics 2792 | -10/Subcaves | Shifting Twisted Machinery released Sub. Laser 2798 | -10/Subcaves | Discovered new exit (range 10) 2833 | -10/Subcaves | Destroyed by S-10 Pest with Light Assault Rifle Last Messages --------------- 02625_ Acquired Unknown Special Weapon. 02625_ Identified Flamer. 02627_ Dropped Flamer. 02627_ Acquired 19 matter. 02640_ System corrupted: FCS attempts to trigger Slug Cannon. 02640_ System corrupted: Slug Cannon misfires. 02653_ Acquired derelict log, extracted data. World map updated: -7/Zion. 02692_ System corrupted: Matter fused (-7). 02728_ Acquired 13 matter. Sub. Optics falls loose from the Twisted Machinery. Sub. Laser falls loose from the Twisted Machinery. 02798_ EXIT=FOUND 02818_ S-10 Pest destroyed. 02820_ Destroyed Flight Unit. 02820_ S-10 Pest knocked back. 02823_ Flight Unit fries itself beyond repair. Map ----- +----------------------------------------------------+ | ????????????????????#?????###?#######??###?####??# | | ??????????????????#?#??###?##?##?#?#########?##??# | | ??????????????????#???#?##??####??######?#?#?##?## | | ??????????????????##??###?##?####?#?#?#?####?##?#? | | ???????????????????????###???#######?########?#### | | ?????????????????????#?##############?####?####??# | | ?????????????????? ???#### #### ##### #######?#? | | ?????????????????? #??#### ### ## ###### | | ???????????? ### # ! ## ###### | | ???????????? % ### # | | ?????????????? # ## # | | ???????????? ### # # ## # | | ??????????? ? ## ?######## ### ## | | ??????????? ######## #### %### | | ?????????? ?#?####### # ###### ## | | ??????????? ?# # ##?####### ## ###### | | ??????????????# % ###?####### ### ####?### | | ?????????? ??### $% ############# ####?##### | | ????????#??? ## ########### ########## | | ?????????## ? #?# ########## ####### | | ?????????##? ?### % ###### ##### % | | ?????????# ## ##?### ## ### | | ???????# ###### ### | | ??????? ######### ####### | | ??????? s ######### ! ####### | | ?????????# # s;@ #### ###### | | ?????????#### ## s ###&& # ## ####### | | ????????????## ??### ### & ###### | | ????????#??#?# ?#??## ==####### ##### | | ???????????## ??###?# [%###### ## # ## | | ?????????#####? #"? *% "#### # ## # | | ????????????# ? ### ## ### ### | | ??????????????? ## #### ## ########## | | ?????????????? ##" "### ## ########### | | ?????????????? ##" " " "### ####### | | ?????????????? #"""" """"## ######## | | ???????????????# #####<###### ############ | | ???????????????############# ############## | | ??????????? ??##??######### ############### | | ??????????????#? ########## " ####### ###### | | ????????????#???????####### " ####### #### | | ????????????? ? ######## "" ##### ##?# | | ???????????? ?? #????#?##" " ##### ### | | ??????????????#???#???##### !" ## | | ?????????????#??##??#######" ""[ ### | | ???????????????#?#?###?###" ### ### # | | ????????????#?#??##?#?##"""""#?#### # | | ????????????#???? ?? # """###### #### | | ????????????#??#? ? ? """######" ####### | | ???????? ? ??#?? #"" ### "" ###???### | +----------------------------------------------------+ Best States ------------- Heat Dissipation 31 Energy Generation 14 Energy Capacity 250 Matter Stores 300 Matter Capacity 300 Sight Range 22 Robot Scan Range 22 Terrain Scan Range 16 Terrain Scan Density 410 Resistance: KI 20 Resistance: TH 20 Resistance: EX 20 Resistance: EM 20 Resistance: I 20 Resistance: S 20 Resistance: P 20 Evasion (%) 55 Offensive Hacking 10 Item Schematics ----------------- None Robot Schematics ------------------ None Fabricated ------------ Nothing Repaired ---------- Nothing Alien Tech Used ----------------- None Achievements -------------- None Challenges ------------ None RPGLIKE | -11 -10 -10 -10 --------- Run | Yrd Mat Min Sub Levels Raised 1 | . . . 1 XP Earned 6595 | 4000 395 750 1450 XP Spent 5500 | 4000 . . 1500 Upgrades 21 | 18 . . 3 Propulsion Slot 1 | 1 . . . Utility Slot 1 | 1 . . . Weapon Slot 1 | 1 . . . Core Integrity 2 | 2 . . . Heat Dissipation 1 | 1 . . . Inventory Capacity 3 | 3 . . . Sight Range 1 | 1 . . . Sensor Range 4 | 4 . . . Terrain Scan Density 4 | 4 . . . Ranged Accuracy 3 | . . . 3 Protomatter Created 180 | . 15 85 80 Integrity Restored 507 | . 12 255 240 Core 507 | . 12 255 240 Protomatter Decayed 156 | . . 44 112 Game ------ Seed ElectrostormAlloyCycler Manual? 0 Play Time 00:41:51 Cumulative 31.3 hours Start 2025.08.02 @ 15:27:55 End 2025.08.02 @ 16:24:48 Sessions 1 Manual Loads 0 Difficulty Adventurer Special Mode Winter2019/RPGLIKE Game No. 44 Rogue 27 Adventurer 17 Explorer 0 Win Type - Total 0 Types 0/0/0/0/0/0/0/0/0/0 Lore% 28 Gallery% 40 Achievement% 39 Wizard Run 0 Options --------- Layout 1 ASCII 0 Keyboard 0 Movement Mouse Keybinds 0 Fullscreen 1 Font 32/SmallcapsGlow Map View 50x40 Zoom Use 0% Tactical HUD 1 Map Filters NONE Filters NONE Steam 1 RUN: d1639e3a-5dba-4e82-8259-ac1309ad9923